[Event "LEM Niedersachsen-A-Open 2025"]
[Site "Verden"]
[Date "2025.01.02"]
[Round "1.1"]
[White "Laubsch, Bernd"]
[Black "Stoy, Ulf"]
[Result "1-0"]
[ECO "B06"]
[WhiteElo "2215"]
[BlackElo "1918"]
[Annotator "TA"]
[PlyCount "89"]
[EventDate "2024.12.27"]
[EventType "swiss"]
[EventCountry "GER"]
[SourceTitle "playchess.com"]
[Source "ChessBase"]
[SourceQuality "1"]
[TimeControl "40/5400+30:1800+30"]

{[%evp 9,89,51,39,19,27,17,46,30,46,18,54,23,38,57,95,108,117,109,135,138,136,128,166,165,195,195,230,153,317,303,320,320,307,267,257,265,258,250,263,260,280,259,264,268,268,255,358,291,297,304,304,286,333,354,301,291,344,325,251,251,370,370,380,377,516,500,462,524,702,712,690,710,836,860,852,823,803,739,968,959,839,739]} 1. e4 {[%emt 0:00:04]} g6 {[%emt 0:00:08]} 2. d4 {[%emt 0:00:07]} Bg7 {[%emt 0:00:09]} 3. Nc3 {[%emt 0:00:27]} d6 {[%emt 0:00:08]} 4. Be3 {[%emt 0:00:19]} a6 {[%emt 0:01:34]} 5. Qd2 {[%emt 0:00:12]} b5 {[%emt 0:00:14]} 6. h4 {[%emt 0:02:18]} h5 {[%emt 0:01:15]} 7. f3 {[%emt 0:03:02]} Nc6 {[%emt 0:07:26]} 8. O-O-O {[%emt 0:07:24] White is slightly better.} Rb8 {[%emt 0:16:19]} 9. Kb1 {[%emt 0:07:43]} Nf6 {[%emt 0:02:36]} 10. Nge2 {[%emt 0:11:49]} Bd7 {[%emt 0:06:39]} 11. Nd5 {[%emt 0:13:09]} e6 {[%emt 0:11:46][%cal Be7e6,Be6e5][%mdl 32]} 12. Nxf6+ {[%emt 0:00:46]} Bxf6 {[%emt 0:00:15]} 13. Bg5 {[%emt 0:02:21]} Bxg5 {[%emt 0:10:06]} 14. hxg5 {[%emt 0:00:23]} e5 {[%emt 0:00:24]} 15. d5 {[%emt 0:03:42]} Ne7 {[%emt 0:07:33] [#]} 16. g4 $1 {[%emt 0:00:41][%mdl 512]} Rb6 {[%emt 0:02:00]} (16... b4 17. Rh4) 17. Rh4 {[%emt 0:09:59]} c5 {[%emt 0:08:04]} 18. Bg2 {[%emt 0:06:27]} Qb8 $2 {[%emt 0:04:47] This move loses the game for Black.} (18... b4 $16 {keeps fighting.} 19. Rdh1 c4) 19. Rdh1 $18 {[%emt 0:05:25]} Kd8 {[%emt 0:00:19]} 20. f4 {[%emt 0:04:11]} Kc7 {[%emt 0:02:05]} ({Much worse is} 20... Bxg4 21. Rxg4 Rh7 22. Rgh4 $18) 21. f5 {[%emt 0:00:22]} Re8 {[%emt 0:05:47][%cal Bh8e8,Be8e7,Be7d7][%mdl 32]} 22. f6 {[%emt 0:00:44]} Bxg4 {[%emt 0:00:33]} 23. fxe7 {[%emt 0:00:09]} Rxe7 {[%emt 0:00:01]} 24. Nc1 {[%emt 0:04:09]} c4 {[%emt 0:02:48]} 25. Bh3 {[%emt 0:00:39]} Bd7 {[%emt 0:01:48]} 26. Bxd7 {[%emt 0:01:23]} Rxd7 {[%emt 0:00:24]} 27. Rf1 {[%emt 0:00:45]} Qd8 {[%emt 0:00:26]} (27... Kd8 {might work better.} 28. Rf6 Rbb7) 28. Rf6 {[%emt 0:00:25]} Kb8 {[%emt 0:00:57]} 29. Rh3 {[%emt 0:01:11]} Rbb7 {[%emt 0:00:57]} 30. Qf2 {[%emt 0:02:02]} Qb6 {[%emt 0:00:20]} 31. Qxb6 {[%emt 0:01:12]} Rxb6 {[%emt 0:00:07]} 32. Rhf3 {[%emt 0:00:03]} Rbb7 {[%emt 0:00:13]} 33. Ne2 {[%emt 0:02:56]} Ka7 {[%emt 0:00:26]} 34. b3 {[%emt 0:02:22]} cxb3 {[%emt 0:01:06]} (34... Rbc7 $142 35. Nc3 cxb3) 35. cxb3 {[%emt 0:01:54]} Rbc7 {[%emt 0:01:45]} 36. Nc1 {[%emt 0:00:38]} Kb6 {[%emt 0:00:43]} 37. Nd3 {[%emt 0:00:40] White is clearly winning.} Kb7 {[%emt 0:02:34]} 38. Nb4 {[%emt 0:00:31]} Kb6 {[%emt 0:00:21]} 39. Nc6 {[%emt 0:00:25]} Kb7 {[%emt 0:00:30]} 40. Kb2 {[%emt 0:00:06]} Ka8 {[%emt 0:02:00]} 41. Ka3 {[%emt 0:30:11]} Kb7 {[%emt 0:32:02]} 42. Kb4 {[%emt 0:00:09]} Kb6 {[%emt 0:00:09]} 43. a3 {[%emt 0:02:31]} h4 {[%emt 0:00:00]} 44. Rh3 {[%emt 0:00:00]} (44. Nxe5 $2 a5#) 44... a5+ {[%emt 0:00:00]} 45. Kc3 {[%emt 0:00:00] Weighted Error Value: White=0.10 (very precise) /Black=0.28 (precise) .  Loses game:     	---       	Black=1      Mistake:       	---       	Black=2      Inaccurate:     	White=3     	Black=5      OK:         	White=17    	Black=4      Best:        	White=1     	Black=1} 1-0

[Event "LEM Niedersachsen-A-Open 2025"]
[Site "Verden"]
[Date "2025.01.02"]
[Round "1.2"]
[White "Nuerenberg, Marius"]
[Black "Stotyn, Fabian"]
[Result "0-1"]
[ECO "B29"]
[WhiteElo "1911"]
[BlackElo "2123"]
[Annotator "TA"]
[PlyCount "110"]
[EventDate "2024.12.27"]
[EventType "swiss"]
[EventCountry "GER"]
[SourceTitle "playchess.com"]
[Source "ChessBase"]
[SourceQuality "1"]
[TimeControl "40/5400+30:1800+30"]

{[%evp 10,110,23,-11,4,9,8,-15,-18,-49,-17,-24,-23,-38,-39,-37,-30,-22,-27,-21,-32,-24,-18,-33,0,-7,0,-20,0,0,0,0,0,0,0,0,0,-79,-96,-95,-77,-83,-76,-84,-86,-112,-131,-132,-141,-132,-128,-104,-110,-144,-62,-46,0,0,0,0,0,0,0,-6,0,0,0,0,0,0,0,0,14,11,12,-135,-159,-148,-122,-205,-216,-206,-133,-140,-125,-332,-324,-288,-283,-426,-422,-458,-413,-918,-905,-905,-852,-846,-797,-789,-740,-742,-723]} 1. e4 {[%emt 0:00:03]} c5 {[%emt 0:00:31]} 2. Nf3 {[%emt 0:00:04]} Nf6 {[%emt 0:00:07]} 3. e5 {[%emt 0:02:48]} Nd5 {[%emt 0:00:35]} 4. c4 {[%emt 0:05:04]} Nc7 {[%emt 0:00:11]} 5. d4 {[%emt 0:00:44]} cxd4 {[%emt 0:00:05]} 6. Nxd4 {[%emt 0:00:21]} Nc6 {[%emt 0:00:26]} 7. Nxc6 {[%emt 0:06:54]} bxc6 {[%emt 0:00:11]} 8. Nc3 {[%emt 0:02:35]} g6 {[%emt 0:03:19]} 9. Bd3 {[%emt 0:06:37]} Bg7 {[%emt 0:00:06]} 10. Qe2 {[%emt 0:01:14]} Ne6 {[%emt 0:01:48]} 11. O-O {[%emt 0:00:54]} O-O {[%emt 0:00:30]} 12. Kh1 {[%emt 0:05:03]} Qa5 {[%emt 0:01:21]} 13. f4 {[%emt 0:01:04]} d6 {[%emt 0:07:01]} 14. exd6 {[%emt 0:07:16]} exd6 {[%emt 0:00:37][%cal Oe6c5]} 15. Bd2 {[%emt 0:01:35]} Qc7 {[%emt 0:05:27]} 16. Rab1 {[%emt 0:03:50]} Nd4 {[%emt 0:05:57]} 17. Qf2 {[%emt 0:01:10]} Re8 {[%emt 0:01:42]} 18. Rfe1 {[%emt 0:02:14]} Bf5 {[%emt 0:03:43]} 19. Bxf5 {[%emt 0:02:16]} Nxf5 {[%emt 0:00:10][%cal Bd4f5,Bf5h6,Bh6f7][%mdl 32]} 20. g4 {[%emt 0:06:54][%cal Bg2g4,Bg4g5][%mdl 32]} Nh6 {[%emt 0:03:35]} 21. h3 {[%emt 0:03:26] Threatens to win with f5.} f5 {[%emt 0:00:39]} 22. g5 {[%emt 0:01:20]} Nf7 {[%emt 0:00:04]} 23. Be3 {[%emt 0:03:45]} (23. b3 $11) 23... Bxc3 $17 {[%emt 0:05:02]} 24. bxc3 {[%emt 0:01:09]} Re4 {[%emt 0:01:24][%cal Oc6c5]} 25. Bd4 {[%emt 0:03:43]} Qe7 {[%emt 0:01:07]} 26. Kh2 {[%emt 0:12:41]} Re8 {[%emt 0:00:32]} 27. Rxe4 {[%emt 0:00:58]} Qxe4 {[%emt 0:00:04]} 28. Rb2 {[%emt 0:01:35][%cal Oc4c5,Bb1b2,Bb2d2,Bd2d5][%mdl 32]} c5 {[%emt 0:01:27]} 29. Bf6 {[%emt 0:00:23]} Qxc4 {[%emt 0:00:55]} 30. Qf3 {[%emt 0:05:21]} d5 {[%emt 0:01:23]} 31. Rd2 {[%emt 0:02:36]} Qe4 {[%emt 0:01:22]} ({Black should play} 31... Kf8 $17 {And now ...Nd6 would win.} 32. Rxd5 Qxa2+ 33. Kg3 a5) 32. Kg2 $15 {[%emt 0:04:20][%cal Of3e4]} Rb8 {[%emt 0:11:26]} (32... Qa4 $15) 33. Qxe4 $11 {[%emt 0:04:04]} dxe4 {[%emt 0:00:19][%mdl 4096] Endgame KRB-KRN. Black is a pawn up.} 34. Kf2 {[%emt 0:02:03]} Rb7 {[%emt 0:01:25][%cal Bb8b7,Bb7c7,Bc7c6][%mdl 32]} 35. Ke3 {[%emt 0:01:18]} Kf8 {[%emt 0:00:06]} 36. Rd5 {[%emt 0:00:28]} Rc7 {[%emt 0:00:19]} 37. c4 {[%emt 0:00:20]} Ke8 {[%emt 0:00:10]} 38. a4 {[%emt 0:00:17]} Rc6 {[%emt 0:02:18]} 39. h4 {[%emt 0:00:24]} Nd6 {[%emt 0:00:40]} 40. Re5+ {[%emt 0:00:45]} Kd7 {[%emt 0:00:48]} 41. Re7+ {[%emt 0:02:49]} Kc8 {[%emt 0:00:29]} 42. Rxa7 {[%emt 0:02:16]} (42. Rxh7 $11 {was the only way to keep the balance.} Nxc4+ 43. Kf2) 42... Nxc4+ {[%emt 0:00:05]} 43. Ke2 {[%emt 0:00:45]} Rc7 {[%emt 0:00:57]} 44. Ra8+ {[%emt 0:02:23]} (44. Ra6 $17) 44... Kb7 $19 {[%emt 0:00:16]} 45. Rd8 {[%emt 0:02:27]} Nb6 {[%emt 0:02:44][%cal Oc7d7]} 46. a5 {[%emt 0:04:24]} Nc4 {[%emt 0:00:05]} 47. Rd1 $2 {[%emt 0:01:06]} (47. Be5 $17 {might work better.} Nxe5 48. fxe5) 47... Kc6 {[%emt 0:01:05][%cal Oc7a7]} ({And not} 47... Nxa5 48. Bd8 $15) 48. Bc3 {[%emt 0:06:01]} Rd7 {[%emt 0:01:08]} 49. Ra1 {[%emt 0:03:20]} (49. Rc1 $142) 49... Rd3 {[%emt 0:01:52]} 50. a6 {[%emt 0:01:04]} Re3+ {[%emt 0:02:53]} (50... Rxc3 51. a7 Re3+ 52. Kf2 Rf3+ 53. Ke1 $17) 51. Kd1 {[%emt 0:03:03]} (51. Kf1 $142 Rxc3 52. a7) 51... Rxc3 {[%emt 0:00:23]} 52. a7 {[%emt 0:00:10]} Nb6 {[%emt 0:00:06]} 53. a8=Q+ {[%emt 0:00:38]} Nxa8 {[%emt 0:00:04]} 54. Rxa8 {[%emt 0:00:06]} Rd3+ {[%emt 0:00:02]} 55. Ke2 {[%emt 0:00:25]} Rh3 {[%emt 0:00:20]} 0-1

[Event "LEM Niedersachsen-A-Open 2025"]
[Site "Verden"]
[Date "2025.01.02"]
[Round "1.3"]
[White "Reimer, Philip"]
[Black "Seer, Maurice"]
[Result "1-0"]
[ECO "C54"]
[WhiteElo "2131"]
[BlackElo "1911"]
[Annotator "TA"]
[PlyCount "73"]
[EventDate "2024.12.27"]
[EventType "swiss"]
[EventCountry "GER"]
[SourceTitle "playchess.com"]
[Source "ChessBase"]
[SourceQuality "1"]
[TimeControl "40/5400+30:1800+30"]

{[%evp 21,73,25,27,25,16,0,0,-45,-53,-49,-13,-34,-27,-116,-8,-18,0,0,0,0,78,18,35,14,77,69,108,75,86,114,93,91,928,910,29991,29992,29992,29993,29993,29994,29994,1296,1285,1221,1121,1047,29977,5306,5265,5218,5297,5293,5269,5121]} 1. e4 {[%emt 0:00:07]} e5 {[%emt 0:00:05]} 2. Nf3 {[%emt 0:00:12]} Nc6 {[%emt 0:00:06]} 3. Bc4 {[%emt 0:00:10]} Bc5 {[%emt 0:00:14]} 4. c3 {[%emt 0:00:36]} Nf6 {[%emt 0:00:43]} 5. d4 {[%emt 0:00:06]} exd4 {[%emt 0:00:51]} 6. e5 {[%emt 0:00:07]} d5 {[%emt 0:02:40]} 7. Bb5 {[%emt 0:00:07]} Ne4 {[%emt 0:01:44]} 8. cxd4 {[%emt 0:00:06]} Bb4+ {[%emt 0:01:15]} 9. Bd2 {[%emt 0:00:15]} Nxd2 {[%emt 0:01:36]} 10. Bxc6+ {[%emt 0:03:54]} bxc6 {[%emt 0:00:19]} 11. Nbxd2 {[%emt 0:00:06]} O-O {[%emt 0:08:01]} 12. O-O {[%emt 0:00:32]} c5 {[%emt 0:05:08]} 13. dxc5 {[%emt 0:19:55]} Bxc5 {[%emt 0:01:07]} 14. Qc2 {[%emt 0:05:15]} Bb6 {[%emt 0:03:36]} 15. b4 {[%emt 0:05:27]} Bg4 {[%emt 1:10:35]} 16. a4 {[%emt 0:04:13]} a5 {[%emt 0:00:00]} 17. bxa5 {[%emt 0:06:07]} (17. b5 $11) 17... Bxa5 {[%emt 0:00:00]} ({Black should try} 17... Rxa5 $17 {and ...c5 would now be decisive} 18. Nb3 Bxf3 19. gxf3 (19. Nxa5 $2 Qg5 $19) 19... Qg5+ 20. Kh1 Raa8) 18. Nd4 $11 {[%emt 0:03:47][%cal Bf3d4,Bd4b5,Bb5d6,Bd6f5][%mdl 32]} Bxd2 {[%emt 0:00:00]} (18... c5 $5 19. Nc6 Qe8 20. Nxa5 Rxa5 $11) 19. Qxd2 {[%emt 0:00:09]} c5 {[%emt 0:00:00]} 20. Nb5 {[%emt 0:08:14]} Re8 {[%emt 0:00:00] [#]} (20... Qa5 $11 21. Qd3 (21. Qxd5 Be2 $17) 21... Be6) 21. Rfe1 {[%emt 0:09:50]} ({Better is} 21. f4 $1 $16) 21... Be6 {[%emt 0:00:00]} 22. f4 {[%emt 0:10:21]} d4 {[%emt 0:00:00]} (22... Qd7 $11 {keeps the balance.}) 23. Nd6 $16 {[%emt 0:01:49][%cal Of4f5]} Re7 {[%emt 0:00:00]} 24. f5 {[%emt 0:00:23][%cal Od2g5] White is more active.} Bd5 {[%emt 0:00:00]} 25. f6 {[%emt 0:06:54]} gxf6 {[%emt 0:01:39]} 26. Nf5 $40 {[%emt 0:03:32][%mdl 128] Qh6 would now be deadly. White attacks with force.} Rxe5 $2 {[%emt 0:00:11][%mdl 8192]} (26... Re6 $16 27. Qh6 Qf8 (27... Rxe5 28. Qg7#)) 27. Rxe5 $18 {[%emt 0:00:30][%cal Od2h6]} fxe5 {[%emt 0:00:03]} 28. Qh6 {[%emt 0:00:09][%csl Gf5][%cal Rh6g7]} Qf8 {[%emt 0:00:47]} 29. Qg5+ {[%emt 0:00:02]} Kh8 {[%emt 0:00:11]} 30. Qf6+ {[%emt 0:00:04]} Kg8 {[%emt 0:00:06]} 31. Nh6+ {[%emt 0:00:15]} ({Weaker is} 31. Qxe5 Be6 $11) (31. Ra3 $142 Bb3 32. Rxb3 d3 33. Rxd3 (33. Qxe5 c4 $18) 33... h5 34. Rg3+ (34. Qxe5 h4 $18) 34... Kh7 35. Rg7+ Kh8 36. Qh6#) 31... Qxh6 {[%emt 0:01:46]} 32. Qxh6 {[%emt 0:00:08]} Re8 {[%emt 0:00:45]} 33. Ra3 {[%emt 0:00:14]} Re6 {[%emt 0:00:20]} 34. Rg3+ {[%emt 0:00:06]} (34. Qg5+ $142 Kf8 35. Qd8+ Kg7 36. Qxd5 c4 37. Rg3+ (37. Qxc4 Rb6 $18) 37... Rg6 38. Rxg6+ (38. Qxc4 h6 $18) (38. Qxe5+ Kf8 $18) 38... Kxg6 39. Qxc4) 34... Rg6 {[%emt 0:00:09]} 35. Rxg6+ {[%emt 0:00:05]} hxg6 {[%emt 0:00:11]} 36. Qg5 {[%emt 0:00:04] Intending Qd8+ and mate.} Be4 {[%emt 0:00:26]} 37. Qxe5 {[%emt 0:00:10]} 1-0

[Event "LEM Niedersachsen-A-Open 2025"]
[Site "Verden"]
[Date "2025.01.02"]
[Round "1.4"]
[White "Monnerjahn, Lukas"]
[Black "Eschholz, Enno"]
[Result "0-1"]
[ECO "A50"]
[WhiteElo "1909"]
[BlackElo "2121"]
[Annotator "TA"]
[PlyCount "32"]
[EventDate "2024.12.27"]
[EventType "swiss"]
[EventCountry "GER"]
[SourceTitle "playchess.com"]
[Source "ChessBase"]
[SourceQuality "1"]
[TimeControl "40/5400+30:1800+30"]

{[%evp 12,32,27,33,54,50,59,29,33,4,14,8,20,18,58,0,5,-412,-112,-29996,-29997,-29998,-29999]} 1. d4 {[%emt 0:00:02][%cal Bd2d4,Bd4d5][%mdl 32]} Nf6 {[%emt 0:00:09]} 2. c4 {[%emt 0:00:04]} Nc6 {[%emt 0:00:09]} 3. g3 {[%emt 0:01:41]} e5 {[%emt 0:00:43]} 4. d5 {[%emt 0:01:20]} Ne7 {[%emt 0:01:09]} 5. Nc3 {[%emt 0:00:58]} Ng6 {[%emt 0:00:23]} 6. Bg2 {[%emt 0:01:14]} Bc5 {[%emt 0:01:39]} 7. Nf3 {[%emt 0:00:48][%cal Bg1f3,Bf3e1,Be1d3][%mdl 32]} O-O {[%emt 0:00:49]} 8. O-O {[%emt 0:01:52]} a5 {[%emt 0:00:54]} 9. Ne1 {[%emt 0:02:02]} d6 {[%emt 0:01:16]} 10. Nd3 {[%emt 0:00:40]} Ba7 {[%emt 0:00:25]} 11. e4 {[%emt 0:10:11]} Bg4 {[%emt 0:04:25]} 12. Qe1 {[%emt 0:03:02]} Qd7 {[%emt 0:05:18]} 13. Bd2 {[%emt 0:04:58]} (13. Be3 $14) 13... Bh3 $11 {[%emt 0:03:17] ...Bxg2 would now be deadly.} 14. b3 $2 {[%emt 0:12:11][%mdl 8192] [#]} (14. Bg5 $11 {and White has nothing to worry.}) 14... Nh4 $2 {[%emt 0:07:34]} (14... Bxg2 $1 $19 {has better winning chances.} 15. Kxg2 Nh4+ 16. gxh4 Qg4+ 17. Kh1 Qf3+ (17... Qxh4 $2 {perishes.} 18. f4 $18) 18. Kg1 Ng4 (18... Qxd3 $2 19. Kg2 $19)) 15. Bxh3 $4 {[%emt 0:05:13][%mdl 8192]} (15. gxh4 $2 {is a self mate.} Qg4) (15. Bh1 $17) 15... Qxh3 {[%emt 0:00:48][%csl Gh4][%cal Rh3g2]} 16. Nf4 {[%emt 0:00:43]} Nf3+ {[%emt 0:00:28]} 0-1

[Event "LEM Niedersachsen-A-Open 2025"]
[Site "Verden"]
[Date "2025.01.02"]
[Round "1.5"]
[White "Weigand, Anton"]
[Black "Stein, Luis"]
[Result "1-0"]
[ECO "B11"]
[WhiteElo "2092"]
[BlackElo "1899"]
[Annotator "NA RC"]
[PlyCount "85"]
[EventDate "2024.12.27"]
[EventType "swiss"]
[EventCountry "GER"]
[SourceTitle "playchess.com"]
[Source "ChessBase"]
[SourceQuality "1"]
[TimeControl "40/5400+30:1800+30"]

1. e4 {[%emt 0:00:05]} c6 {[%emt 0:00:06]} 2. Nf3 {[%emt 0:00:05]} d5 {[%emt 0:00:03]} 3. Nc3 {[%emt 0:00:05]} dxe4 {[%emt 0:00:06]} 4. Nxe4 {[%emt 0:00:12]} Nf6 {[%emt 0:00:04]} 5. Qe2 {[%emt 0:00:06]} Bg4 {[%emt 0:00:20]} 6. Nxf6+ {[%emt 0:00:37] B11: Caro-Kann: Two Knights Variation.} gxf6 {[%emt 0:00:05]} 7. h3 {[%emt 0:04:02]} Bxf3 {[%emt 0:00:04]} 8. Qxf3 {[%emt 0:00:06]} Nd7 {[%emt 0:04:18]} 9. d4 {[%emt 0:00:20]} Nb6 {[%emt 0:03:20]} 10. c3 {[%emt 0:00:31]} Qd5 {[%emt 0:07:17]} 11. Be2 {[%emt 0:00:06]} Rg8 {[%emt 0:09:03]} 12. a4 {[%emt 0:04:21]} a5 {[%emt 0:13:27]} 13. g3 {[%emt 0:02:15]} O-O-O {[%emt 0:11:31]} 14. O-O {[%emt 0:10:02]} Qxf3 {[%emt 0:01:29]} 15. Bxf3 {[%emt 0:00:05]} e6 {[%emt 0:02:09]} 16. Re1 {[%emt 0:03:00]} c5 {[%emt 0:12:40]} 17. Be3 {[%emt 0:07:16]} Nc4 {[%emt 0:02:42]} 18. Rad1 {[%emt 0:10:15]} Nxe3 {[%emt 0:00:33]} 19. Rxe3 {[%emt 0:00:05]} Bh6 {[%emt 0:05:09]} 20. Re4 {[%emt 0:03:47]} cxd4 {[%emt 0:13:57]} 21. Rexd4 {[%emt 0:00:45]} Rxd4 {[%emt 0:09:28]} 22. Rxd4 {[%emt 0:00:08]} Bf8 {[%emt 0:02:22]} 23. Rc4+ {[%emt 0:13:08]} Kb8 {[%emt 0:00:21]} 24. Bh5 {[%emt 0:00:11]} Rg5 {[%emt 0:01:08]} 25. Bxf7 {[%emt 0:01:21]} Re5 $16 {[%emt 0:00:02]} 26. Kf1 {[%emt 0:00:52]} Bd6 {[%emt 0:01:13]} 27. Rh4 {[%emt 0:08:52]} b5 {[%emt 0:00:29]} 28. Be8 {[%emt 0:31:52]} b4 {[%emt 0:00:18]} 29. Rxh7 {[%emt 0:00:00]} b3 {[%emt 0:00:02]} 30. Bc6 {[%emt 0:00:00]} Bc7 {[%emt 0:00:01]} 31. Bf3 {[%emt 0:00:00]} Rf5 {[%emt 0:01:07]} 32. Bg4 {[%emt 0:00:00]} Rd5 {[%emt 0:00:35]} 33. Ke2 {[%emt 0:00:00]} Bb6 {[%emt 0:00:46]} 34. f4 {[%emt 0:00:00]} Rd6 {[%emt 0:00:32]} 35. Re7 {[%emt 0:00:00]} f5 {[%emt 0:00:36]} 36. Bf3 {[%emt 0:00:00]} Kc8 {[%emt 0:00:08]} 37. h4 {[%emt 0:00:00]} Bf2 {[%emt 0:00:25]} 38. Kxf2 {[%emt 0:00:00]} Rd2+ {[%emt 0:00:01]} 39. Ke3 {[%emt 0:00:03]} Rxb2 {[%emt 0:00:03]} 40. Rb7 {[%emt 0:00:15]} Rb1 {[%emt 0:00:02]} 41. Rb5 {[%emt 0:32:28]} Kc7 {[%emt 0:02:59]} 42. Be2 {[%emt 0:00:00]} b2 {[%emt 0:00:27]} 43. h5 {[%emt 0:00:00]} 1-0

[Event "LEM Niedersachsen-A-Open 2025"]
[Site "Verden"]
[Date "2025.01.02"]
[Round "1.6"]
[White "Thieu, Nguyen Gia Bao"]
[Black "Burkhardt, Holger"]
[Result "0-1"]
[ECO "C61"]
[WhiteElo "1898"]
[BlackElo "2092"]
[Annotator "NA RC"]
[PlyCount "58"]
[EventDate "2024.12.27"]
[EventType "swiss"]
[EventCountry "GER"]
[SourceTitle "playchess.com"]
[Source "ChessBase"]
[SourceQuality "1"]
[TimeControl "40/5400+30:1800+30"]

1. e4 {[%emt 0:00:03]} e5 {[%emt 0:00:09]} 2. Nf3 {[%emt 0:00:06]} Nc6 {[%emt 0:00:07]} 3. Bb5 {[%emt 0:00:06]} Nd4 {[%emt 0:00:10]} 4. Bc4 {[%emt 0:04:56]} d5 {[%emt 0:02:56]} 5. Bxd5 {[%emt 0:14:18]} Nf6 {[%emt 0:02:05]} 6. c3 {[%emt 0:05:23] C61: Ruy Lopez: Bird's Defence.} Nxd5 {[%emt 0:21:47]} 7. exd5 {[%emt 0:06:22]} Nxf3+ {[%emt 0:10:48]} 8. Qxf3 {[%emt 0:00:08]} Bd6 {[%emt 0:01:06]} 9. O-O {[%emt 0:03:59]} O-O {[%emt 0:00:09]} 10. d3 {[%emt 0:05:31]} Qh4 {[%emt 0:00:53]} 11. g3 {[%emt 0:07:57]} Qh3 {[%emt 0:01:00]} 12. Nd2 {[%emt 0:03:18]} Bg4 {[%emt 0:03:11]} 13. Qg2 {[%emt 0:00:33]} Qxg2+ {[%emt 0:08:23]} 14. Kxg2 {[%emt 0:00:16]} Be2 {[%emt 0:00:06]} 15. Re1 {[%emt 0:02:16]} Bxd3 {[%emt 0:00:06]} 16. Re3 {[%emt 0:02:44]} Bg6 {[%emt 0:03:08]} 17. Nc4 {[%emt 0:00:20]} f6 {[%emt 0:03:14]} 18. Nxd6 {[%emt 0:00:18]} cxd6 {[%emt 0:00:01]} 19. b3 {[%emt 0:00:23]} Rfd8 {[%emt 0:01:48]} 20. Ba3 {[%emt 0:04:26]} b5 {[%emt 0:05:21]} 21. c4 {[%emt 0:07:36]} Rab8 {[%emt 0:00:20]} 22. Rd1 {[%emt 0:06:56]} Bf7 {[%emt 0:07:41]} 23. f4 {[%emt 0:03:55]} Rb6 {[%emt 0:12:00]} 24. Bb4 $11 {[%emt 0:09:03]} Rc8 {[%emt 0:02:40]} 25. Rc3 {[%emt 0:03:21]} bxc4 {[%emt 0:00:46]} 26. a3 {[%emt 0:01:13]} a5 {[%emt 0:01:53]} 27. Bxa5 {[%emt 0:00:08]} Rxb3 {[%emt 0:00:07]} 28. fxe5 {[%emt 0:02:30]} fxe5 {[%emt 0:00:31]} 29. Kf3 {[%emt 0:00:53]} Rc5 {[%emt 0:02:12]} 0-1

[Event "LEM Niedersachsen-A-Open 2025"]
[Site "Verden"]
[Date "2025.01.02"]
[Round "1.7"]
[White "Renner, Kai"]
[Black "Bangert, Jonas"]
[Result "1-0"]
[ECO "B34"]
[WhiteElo "2080"]
[BlackElo "1894"]
[Annotator "NA RC"]
[PlyCount "79"]
[EventDate "2024.12.27"]
[EventType "swiss"]
[EventCountry "GER"]
[SourceTitle "playchess.com"]
[Source "ChessBase"]
[SourceQuality "1"]
[TimeControl "40/5400+30:1800+30"]

1. e4 {[%emt 0:00:02]} c5 {[%emt 0:00:05]} 2. Nf3 {[%emt 0:00:07]} g6 {[%emt 0:00:06]} 3. d4 {[%emt 0:00:14]} cxd4 {[%emt 0:00:03]} 4. Nxd4 {[%emt 0:00:06]} Nf6 {[%emt 0:00:04]} 5. Nc3 {[%emt 0:04:49]} Nc6 {[%emt 0:00:16]} 6. Be3 {[%emt 0:07:35]} Bg7 {[%emt 0:00:11]} 7. Nxc6 {[%emt 0:05:32]} bxc6 {[%emt 0:00:13]} 8. e5 {[%emt 0:06:32]} Ng8 {[%emt 0:00:12]} 9. f4 {[%emt 0:03:13]} f6 {[%emt 0:02:02]} 10. exf6 {[%emt 0:05:22]} Nxf6 {[%emt 0:00:07]} 11. Be2 {[%emt 0:03:41]} O-O {[%emt 0:02:31]} 12. O-O {[%emt 0:07:43]} Qa5 {[%emt 0:05:16]} 13. Qd2 {[%emt 0:04:31]} Rb8 {[%emt 0:02:04]} 14. Rab1 {[%emt 0:02:53]} d6 {[%emt 0:35:05]} 15. h3 {[%emt 0:07:06]} Rd8 {[%emt 0:07:26]} 16. Bf3 {[%emt 0:04:27]} c5 $11 {[%emt 0:02:44]} 17. Rfd1 {[%emt 0:07:26]} e6 {[%emt 0:10:32]} 18. b3 {[%emt 0:13:35]} Bb7 {[%emt 0:14:24]} 19. Bxb7 {[%emt 0:00:17]} Rxb7 {[%emt 0:00:06]} 20. Ne4 {[%emt 0:03:05]} Qxd2 {[%emt 0:17:03]} 21. Nxf6+ {[%emt 0:00:22]} Bxf6 {[%emt 0:00:00]} 22. Rxd2 {[%emt 0:00:05]} c4 {[%emt 0:00:00]} 23. Rbd1 {[%emt 0:00:52]} cxb3 {[%emt 0:00:00]} 24. cxb3 {[%emt 0:00:11]} d5 {[%emt 0:00:00]} 25. Rc2 {[%emt 0:03:44]} Kf7 {[%emt 0:00:00]} 26. Bd4 {[%emt 0:00:47]} Bxd4+ {[%emt 0:00:10]} 27. Rxd4 {[%emt 0:00:04]} Rdd7 {[%emt 0:00:22]} 28. Kf2 {[%emt 0:00:48]} Rdc7 {[%emt 0:00:12]} 29. Rxc7+ {[%emt 0:01:55]} Rxc7 {[%emt 0:00:04]} 30. Ra4 {[%emt 0:00:04]} h5 {[%emt 0:00:44]} 31. g4 {[%emt 0:02:37]} hxg4 {[%emt 0:00:05]} 32. hxg4 {[%emt 0:00:05]} Kf6 {[%emt 0:00:30]} 33. Ra6 {[%emt 0:00:20]} g5 {[%emt 0:03:05]} 34. f5 {[%emt 0:00:34]} Ke5 {[%emt 0:00:01]} 35. fxe6 {[%emt 0:03:26]} Kf4 {[%emt 0:01:40]} 36. Ra4+ {[%emt 0:01:58]} Ke5 {[%emt 0:00:08]} 37. Ke3 {[%emt 0:00:45]} Kxe6 {[%emt 0:00:06]} 38. Kd4 {[%emt 0:00:04]} Rd7 {[%emt 0:01:14]} 39. Ra6+ {[%emt 0:00:08]} Ke7 {[%emt 0:00:05]} 40. Rg6 {[%emt 0:03:25]} 1-0